[Event "*** Qualifier 2: Titled Tuesday 3|2 Blitz"]
[Site "Chess.com"]
[Date "2017.04.11"]
[Round "4"]
[White "luisgui16"]
[Black "brauliocuarta"]
[Result "1-0"]
[WhiteElo "2119"]
[BlackElo "2039"]
[TimeControl "180+2"]
[EndTime "13:48:45 PDT"]
[Termination "luisgui16 won on time"]

1. e4 {[%clk 0:03:02]} 1... c5 {[%clk 0:02:59.9]} 2. Nf3 {[%clk 0:03:02.2]} 2...
e6 {[%clk 0:03:01.5]} 3. c4 {[%clk 0:03:02.9]} 3... a6 {[%clk 0:03:01.6]} 4. d4
{[%clk 0:03:03.5]} 4... cxd4 {[%clk 0:03:03.5]} 5. Nxd4 {[%clk 0:03:05]} 5...
Nf6 {[%clk 0:03:03.9]} 6. Nc3 {[%clk 0:03:05.8]} 6... Bb4 {[%clk 0:03:04.5]} 7.
Qd3 {[%clk 0:03:04]} 7... d5 {[%clk 0:02:53.7]} 8. cxd5 {[%clk 0:02:55.3]} 8...
exd5 {[%clk 0:02:55.6]} 9. e5 {[%clk 0:02:56.4]} 9... Ne4 {[%clk 0:02:54.7]} 10.
Be2 {[%clk 0:02:57.5]} 10... Qc7 {[%clk 0:02:46.5]} 11. O-O {[%clk 0:02:52.3]}
11... Qxe5 {[%clk 0:02:46.1]} 12. Nf3 {[%clk 0:02:53.1]} 12... Qd6 {[%clk
0:00:32.9]} 13. Nxd5 {[%clk 0:02:51.1]} 13... Nf6 {[%clk 0:00:28.6]} 14. Nxf6+
{[%clk 0:02:17.7]} 14... gxf6 {[%clk 0:00:22.1]} 15. Qe4+ {[%clk 0:02:18.1]}
15... Qe7 {[%clk 0:00:18.3]} 16. Qc2 {[%clk 0:02:19]} 16... Nc6 {[%clk
0:00:14.7]} 17. Bc4 {[%clk 0:02:11.6]} 17... O-O {[%clk 0:00:14.6]} 18. a3
{[%clk 0:02:04.8]} 18... Bd6 {[%clk 0:00:13.8]} 19. Re1 {[%clk 0:02:03.9]} 19...
Qc7 {[%clk 0:00:11.2]} 20. Bd3 {[%clk 0:02:01.2]} 20... Kh8 {[%clk 0:00:10.7]}
21. Bxh7 {[%clk 0:02:01.5]} 21... Bg4 {[%clk 0:00:08.3]} 22. Be4 {[%clk
0:01:42.9]} 22... Rac8 {[%clk 0:00:07.3]} 23. h3 {[%clk 0:01:40.7]} 23... Bxf3
{[%clk 0:00:06.2]} 24. Bxf3 {[%clk 0:01:42.6]} 24... Nd4 {[%clk 0:00:06.6]} 25.
Qe4 {[%clk 0:01:38.6]} 25... Kg7 {[%clk 0:00:02.7]} 26. Qg4+ {[%clk 0:01:37.2]}
26... Kh8 {[%clk 0:00:03.7]} 27. Qh5+ {[%clk 0:01:38]} 27... Kg7 {[%clk
0:00:04]} 28. Bh6+ {[%clk 0:01:38.4]} 1-0

[Event "*** Qualifier 2: Titled Tuesday 3|2 Blitz"]
[Site "Chess.com"]
[Date "2017.04.11"]
[Round "4"]
[White "StarkAst"]
[Black "Rodalquilar"]
[Result "0-1"]
[WhiteElo "2340"]
[BlackElo "2524"]
[TimeControl "180+2"]
[EndTime "13:49:05 PDT"]
[Termination "Rodalquilar won by checkmate"]

1. e4 {[%clk 0:03:02]} 1... e5 {[%clk 0:03:00.8]} 2. Nf3 {[%clk 0:03:02.6]} 2...
Nc6 {[%clk 0:03:02.2]} 3. d4 {[%clk 0:03:03.6]} 3... exd4 {[%clk 0:03:03.2]} 4.
Nxd4 {[%clk 0:03:05.5]} 4... Bb4+ {[%clk 0:03:04.1]} 5. c3 {[%clk 0:03:03.3]}
5... Bc5 {[%clk 0:03:05.5]} 6. Nb3 {[%clk 0:03:00.9]} 6... Bb6 {[%clk
0:03:05.9]} 7. Qe2 {[%clk 0:03:00.5]} 7... d6 {[%clk 0:02:54.2]} 8. Be3 {[%clk
0:03:00.8]} 8... Nf6 {[%clk 0:02:52]} 9. N1d2 {[%clk 0:02:59.3]} 9... O-O {[%clk
0:02:51.8]} 10. O-O-O {[%clk 0:02:59.3]} 10... Re8 {[%clk 0:02:52]} 11. f3
{[%clk 0:03:00.1]} 11... d5 {[%clk 0:02:40]} 12. Bxb6 {[%clk 0:02:35.3]} 12...
axb6 {[%clk 0:02:40]} 13. Kb1 {[%clk 0:02:36.1]} 13... Qe7 {[%clk 0:02:33.1]}
14. exd5 {[%clk 0:02:18.3]} 14... Bf5+ {[%clk 0:02:28.5]} 15. Ne4 {[%clk
0:02:00.7]} 15... Nxe4 {[%clk 0:02:21.5]} 16. fxe4 {[%clk 0:02:02.1]} 16...
Bxe4+ {[%clk 0:02:21.1]} 17. Kc1 {[%clk 0:01:59.3]} 17... Bxd5 {[%clk
0:01:37.3]} 18. Rxd5 {[%clk 0:01:20.4]} 18... Qxe2 {[%clk 0:01:37.8]} 19. Bxe2
{[%clk 0:01:22.3]} 19... Rxe2 {[%clk 0:01:39.1]} 20. Rd7 {[%clk 0:01:19.7]}
20... Rxa2 {[%clk 0:01:21.9]} 21. Rxc7 {[%clk 0:01:12.8]} 21... h5 {[%clk
0:01:22.7]} 22. Rf1 {[%clk 0:00:58]} 22... Ne5 {[%clk 0:01:16.3]} 23. Rf5 {[%clk
0:00:35.4]} 23... f6 {[%clk 0:00:57.8]} 24. Rc8+ {[%clk 0:00:19.3]} 24... Kf7
{[%clk 0:00:57]} 25. Rc7+ {[%clk 0:00:20.7]} 25... Kg6 {[%clk 0:00:57.6]} 26.
Nd4 {[%clk 0:00:15.9]} 26... Ra1# {[%clk 0:00:58.2]} 0-1

[Event "*** Qualifier 2: Titled Tuesday 3|2 Blitz"]
[Site "Chess.com"]
[Date "2017.04.11"]
[Round "4"]
[White "likantrophuss"]
[Black "Ginger_GM"]
[Result "0-1"]
[WhiteElo "2389"]
[BlackElo "2438"]
[TimeControl "180+2"]
[EndTime "13:49:29 PDT"]
[Termination "Ginger_GM won by resignation"]

1. b3 {[%clk 0:02:59.7]} 1... e5 {[%clk 0:02:57.6]} 2. Bb2 {[%clk 0:03:00.9]}
2... e4 {[%clk 0:02:58.9]} 3. e3 {[%clk 0:03:01.4]} 3... Nf6 {[%clk 0:02:59.1]}
4. f3 {[%clk 0:03:02.5]} 4... d5 {[%clk 0:02:59.9]} 5. c4 {[%clk 0:03:02.8]}
5... c6 {[%clk 0:03:00.6]} 6. cxd5 {[%clk 0:03:03.5]} 6... cxd5 {[%clk
0:03:01.4]} 7. fxe4 {[%clk 0:03:04.6]} 7... dxe4 {[%clk 0:03:01.3]} 8. Bb5+
{[%clk 0:02:58.1]} 8... Nc6 {[%clk 0:03:00.5]} 9. Qc2 {[%clk 0:02:56]} 9... Be7
{[%clk 0:02:32.2]} 10. Ne2 {[%clk 0:01:46.3]} 10... O-O {[%clk 0:02:31.8]} 11.
Bxc6 {[%clk 0:01:38.7]} 11... bxc6 {[%clk 0:02:31.4]} 12. O-O {[%clk 0:01:27.8]}
12... Ba6 {[%clk 0:02:30.1]} 13. Nbc3 {[%clk 0:01:28.3]} 13... Bd3 {[%clk
0:02:30.7]} 14. Qc1 {[%clk 0:01:25.7]} 14... Bd6 {[%clk 0:02:22.9]} 15. Qe1
{[%clk 0:01:19.2]} 15... Ng4 {[%clk 0:02:18.2]} 16. h3 {[%clk 0:01:15.9]} 16...
Ne5 {[%clk 0:02:09.9]} 17. Rf5 {[%clk 0:01:09.5]} 17... g6 {[%clk 0:01:58.7]}
18. Rf4 {[%clk 0:01:08.8]} 18... f5 {[%clk 0:01:51.2]} 19. Nd4 {[%clk
0:01:09.6]} 19... Qd7 {[%clk 0:01:45.2]} 20. Rf2 {[%clk 0:00:53.7]} 20... c5
{[%clk 0:01:43.1]} 21. Nde2 {[%clk 0:00:54.5]} 21... g5 {[%clk 0:01:28.8]} 22.
Na4 {[%clk 0:00:53]} 22... Bb5 {[%clk 0:01:17.7]} 23. Nxc5 {[%clk 0:00:51.7]}
23... Qe7 {[%clk 0:01:08]} 24. b4 {[%clk 0:00:49.3]} 24... Bxc5 {[%clk
0:00:56.9]} 25. Bxe5 {[%clk 0:00:50.3]} 25... Qxe5 {[%clk 0:00:46.4]} 26. bxc5
{[%clk 0:00:50.4]} 26... Bxe2 {[%clk 0:00:45.5]} 27. Qxe2 {[%clk 0:00:50]} 27...
Qxa1+ {[%clk 0:00:46.2]} 28. Kh2 {[%clk 0:00:50.1]} 28... Qe5+ {[%clk
0:00:45.4]} 29. g3 {[%clk 0:00:50.9]} 29... Qxc5 {[%clk 0:00:44.1]} 30. Qh5
{[%clk 0:00:50.9]} 30... Qe7 {[%clk 0:00:44.3]} 0-1

[Event "*** Qualifier 2: Titled Tuesday 3|2 Blitz"]
[Site "Chess.com"]
[Date "2017.04.11"]
[Round "4"]
[White "macko06"]
[Black "prochn"]
[Result "1-0"]
[WhiteElo "2348"]
[BlackElo "2208"]
[TimeControl "180+2"]
[EndTime "13:49:46 PDT"]
[Termination "macko06 won on time"]

1. d4 {[%clk 0:03:02]} 1... d5 {[%clk 0:03:00.6]} 2. Bf4 {[%clk 0:03:03.4]} 2...
Nf6 {[%clk 0:02:58.6]} 3. e3 {[%clk 0:03:04.7]} 3... c5 {[%clk 0:02:59.6]} 4. c3
{[%clk 0:03:05.4]} 4... Qb6 {[%clk 0:02:58.4]} 5. Qb3 {[%clk 0:03:05.6]} 5... c4
{[%clk 0:02:57.3]} 6. Qc2 {[%clk 0:03:06.6]} 6... Nc6 {[%clk 0:02:44.9]} 7. Nd2
{[%clk 0:03:07.4]} 7... g6 {[%clk 0:02:37]} 8. Ngf3 {[%clk 0:03:08.2]} 8... Bf5
{[%clk 0:02:37]} 9. Qc1 {[%clk 0:03:08.7]} 9... Bg7 {[%clk 0:02:35.6]} 10. Be2
{[%clk 0:03:08.1]} 10... O-O {[%clk 0:02:36.3]} 11. O-O {[%clk 0:03:08.5]} 11...
Rfc8 {[%clk 0:02:36.4]} 12. h3 {[%clk 0:03:06.3]} 12... Qd8 {[%clk 0:02:36.4]}
13. b3 {[%clk 0:03:04.6]} 13... b5 {[%clk 0:02:36.5]} 14. a4 {[%clk 0:03:05.6]}
14... a6 {[%clk 0:02:36.2]} 15. axb5 {[%clk 0:03:05.4]} 15... axb5 {[%clk
0:02:36.7]} 16. Qb2 {[%clk 0:03:04.8]} 16... Ne4 {[%clk 0:02:29]} 17. Rxa8
{[%clk 0:03:02.9]} 17... Rxa8 {[%clk 0:02:28.9]} 18. bxc4 {[%clk 0:03:02.9]}
18... bxc4 {[%clk 0:02:29]} 19. Nxe4 {[%clk 0:03:02.8]} 19... Bxe4 {[%clk
0:02:29]} 20. Nd2 {[%clk 0:03:03.8]} 20... Bf5 {[%clk 0:02:27.2]} 21. e4 {[%clk
0:03:02.8]} 21... dxe4 {[%clk 0:02:19.1]} 22. Nxc4 {[%clk 0:03:03.9]} 22... h6
{[%clk 0:01:54]} 23. Rd1 {[%clk 0:03:02.4]} 23... g5 {[%clk 0:01:36.4]} 24. Be3
{[%clk 0:02:59.5]} 24... Qc7 {[%clk 0:01:32]} 25. Ra1 {[%clk 0:02:53.8]} 25...
Rb8 {[%clk 0:01:24.8]} 26. Qc1 {[%clk 0:02:52.6]} 26... Bg6 {[%clk 0:01:13.2]}
27. h4 {[%clk 0:02:50.8]} 27... f6 {[%clk 0:00:57.7]} 28. d5 {[%clk 0:02:45.8]}
28... Ne5 {[%clk 0:00:56.1]} 29. Ra7 {[%clk 0:02:42]} 29... Rb7 {[%clk
0:00:47.6]} 30. Rxb7 {[%clk 0:02:37.8]} 30... Qxb7 {[%clk 0:00:48.5]} 31. Nxe5
{[%clk 0:02:39.7]} 31... fxe5 {[%clk 0:00:48.9]} 32. hxg5 {[%clk 0:02:38.8]}
32... Qxd5 {[%clk 0:00:46.4]} 33. c4 {[%clk 0:02:37.1]} 33... Qc6 {[%clk
0:00:44.2]} 34. gxh6 {[%clk 0:02:37.9]} 34... Bf8 {[%clk 0:00:42.9]} 35. c5
{[%clk 0:02:32.5]} 35... Kh7 {[%clk 0:00:43.9]} 36. g4 {[%clk 0:02:30.5]} 36...
Be8 {[%clk 0:00:40.1]} 37. g5 {[%clk 0:02:29.3]} 37... Qe6 {[%clk 0:00:35.8]}
38. Qb1 {[%clk 0:02:27.1]} 38... Bc6 {[%clk 0:00:35.7]} 39. Bh5 {[%clk
0:02:05.1]} 39... Kg8 {[%clk 0:00:21.1]} 40. g6 {[%clk 0:02:00.5]} 40... Qh3
{[%clk 0:00:21.8]} 41. Qa2+ {[%clk 0:01:58.2]} 41... e6 {[%clk 0:00:20.2]} 42.
Qa7 {[%clk 0:01:54.1]} 42... Bb7 {[%clk 0:00:07.3]} 43. Qxb7 {[%clk 0:01:53.8]}
43... Be7 {[%clk 0:00:05.9]} 44. Qxe7 {[%clk 0:01:54.6]} 1-0

[Event "*** Qualifier 2: Titled Tuesday 3|2 Blitz"]
[Site "Chess.com"]
[Date "2017.04.11"]
[Round "4"]
[White "Cecile_Haussernot"]
[Black "evgenyermolaev"]
[Result "1-0"]
[WhiteElo "2297"]
[BlackElo "2370"]
[TimeControl "180+2"]
[EndTime "13:49:50 PDT"]
[Termination "Cecile_Haussernot won by resignation"]

1. e4 {[%clk 0:02:59.5]} 1... c5 {[%clk 0:03:00.8]} 2. Nf3 {[%clk 0:02:55.1]}
2... d6 {[%clk 0:03:01.6]} 3. d4 {[%clk 0:02:54.3]} 3... cxd4 {[%clk 0:03:02.5]}
4. Nxd4 {[%clk 0:02:56.2]} 4... Nf6 {[%clk 0:03:03.7]} 5. Nc3 {[%clk 0:02:56.2]}
5... a6 {[%clk 0:03:05.2]} 6. h3 {[%clk 0:02:54.4]} 6... e5 {[%clk 0:03:05.7]}
7. Nde2 {[%clk 0:02:54.8]} 7... Be7 {[%clk 0:03:06.4]} 8. g4 {[%clk 0:02:53.1]}
8... Be6 {[%clk 0:03:06.9]} 9. Bg2 {[%clk 0:02:50.6]} 9... O-O {[%clk
0:03:07.3]} 10. O-O {[%clk 0:02:48.7]} 10... Nc6 {[%clk 0:03:08.4]} 11. Nd5
{[%clk 0:02:46.7]} 11... Bxd5 {[%clk 0:02:43.5]} 12. exd5 {[%clk 0:02:47.5]}
12... Na5 {[%clk 0:02:38.6]} 13. b3 {[%clk 0:02:44.3]} 13... b5 {[%clk
0:02:33.8]} 14. Ng3 {[%clk 0:02:40.5]} 14... Re8 {[%clk 0:02:27]} 15. Nf5 {[%clk
0:02:38.3]} 15... Bf8 {[%clk 0:02:25.6]} 16. Bd2 {[%clk 0:02:31.2]} 16... Nb7
{[%clk 0:02:03.2]} 17. a4 {[%clk 0:02:28.7]} 17... Nc5 {[%clk 0:01:48.4]} 18.
axb5 {[%clk 0:02:22.5]} 18... axb5 {[%clk 0:01:49]} 19. Qe2 {[%clk 0:02:24]}
19... Rb8 {[%clk 0:01:12.6]} 20. b4 {[%clk 0:02:10.9]} 20... Na4 {[%clk
0:01:03]} 21. c4 {[%clk 0:02:09.6]} 21... Nb6 {[%clk 0:01:00.6]} 22. g5 {[%clk
0:02:06.7]} 22... Nfd7 {[%clk 0:00:42.1]} 23. cxb5 {[%clk 0:02:03.7]} 23... e4
{[%clk 0:00:30.1]} 24. Nd4 {[%clk 0:01:59.9]} 24... Ne5 {[%clk 0:00:23]} 25. Nc6
{[%clk 0:01:52.3]} 25... Nxc6 {[%clk 0:00:23.8]} 26. bxc6 {[%clk 0:01:53.2]}
26... Nxd5 {[%clk 0:00:23.4]} 27. b5 {[%clk 0:01:35.8]} 27... Qb6 {[%clk
0:00:23.2]} 28. Rfb1 {[%clk 0:01:29.7]} 28... e3 {[%clk 0:00:22.6]} 29. Bxd5
{[%clk 0:01:28.2]} 29... exd2 {[%clk 0:00:23.2]} 30. Qxd2 {[%clk 0:01:30.1]}
30... Re5 {[%clk 0:00:23.4]} 31. Rc1 {[%clk 0:01:18.1]} 31... Be7 {[%clk
0:00:18.9]} 32. c7 {[%clk 0:01:14.9]} 32... Rc8 {[%clk 0:00:19.9]} 33. Ra8
{[%clk 0:01:12.1]} 33... Rxa8 {[%clk 0:00:12.9]} 34. Bxa8 {[%clk 0:01:10.9]} 1-0

[Event "*** Qualifier 2: Titled Tuesday 3|2 Blitz"]
[Site "Chess.com"]
[Date "2017.04.11"]
[Round "4"]
[White "DagurR"]
[Black "Bugcrusher"]
[Result "0-1"]
[WhiteElo "2429"]
[BlackElo "2399"]
[TimeControl "180+2"]
[EndTime "13:49:56 PDT"]
[Termination "Bugcrusher won by checkmate"]

1. d4 {[%clk 0:03:02]} 1... Nf6 {[%clk 0:03:00.6]} 2. c4 {[%clk 0:03:02.7]} 2...
g6 {[%clk 0:03:01.7]} 3. Nc3 {[%clk 0:03:03.4]} 3... Bg7 {[%clk 0:02:58.9]} 4.
Nf3 {[%clk 0:03:04.9]} 4... d6 {[%clk 0:02:59.7]} 5. g3 {[%clk 0:03:04.5]} 5...
O-O {[%clk 0:02:59.9]} 6. Bg2 {[%clk 0:03:06.1]} 6... Nc6 {[%clk 0:02:59.5]} 7.
O-O {[%clk 0:03:07.2]} 7... a6 {[%clk 0:03:00.7]} 8. Qd3 {[%clk 0:02:59.1]} 8...
Rb8 {[%clk 0:02:58.8]} 9. e4 {[%clk 0:02:50.9]} 9... Bg4 {[%clk 0:02:57.1]} 10.
Be3 {[%clk 0:02:47.7]} 10... Re8 {[%clk 0:02:56]} 11. h3 {[%clk 0:02:48.7]}
11... Bxf3 {[%clk 0:02:56.9]} 12. Bxf3 {[%clk 0:02:50.2]} 12... e5 {[%clk
0:02:58.6]} 13. d5 {[%clk 0:02:50.5]} 13... Nd4 {[%clk 0:02:59.9]} 14. Bg2
{[%clk 0:02:50]} 14... c5 {[%clk 0:03:00.7]} 15. dxc6 {[%clk 0:02:50.7]} 15...
bxc6 {[%clk 0:03:02]} 16. b3 {[%clk 0:02:52.1]} 16... Nd7 {[%clk 0:03:02.7]} 17.
Ne2 {[%clk 0:02:46.2]} 17... Nc5 {[%clk 0:02:53.1]} 18. Qd2 {[%clk 0:02:45.7]}
18... Nce6 {[%clk 0:02:53.4]} 19. f4 {[%clk 0:02:26.2]} 19... Nxe2+ {[%clk
0:02:49.4]} 20. Qxe2 {[%clk 0:02:28.1]} 20... exf4 {[%clk 0:02:50.6]} 21. gxf4
{[%clk 0:02:26.8]} 21... Bxa1 {[%clk 0:02:51.6]} 22. Rxa1 {[%clk 0:02:28.6]}
22... d5 {[%clk 0:02:46.4]} 23. Rd1 {[%clk 0:02:26.7]} 23... Qh4 {[%clk
0:02:44.3]} 24. Qf2 {[%clk 0:01:24.6]} 24... Qxf2+ {[%clk 0:02:42.8]} 25. Kxf2
{[%clk 0:01:26.5]} 25... dxe4 {[%clk 0:02:40.7]} 26. Bxe4 {[%clk 0:01:28.2]}
26... Nxf4 {[%clk 0:02:39]} 27. Bxf4 {[%clk 0:01:29.5]} 27... Rbc8 {[%clk
0:02:33.2]} 28. Bf3 {[%clk 0:01:26.2]} 28... c5 {[%clk 0:02:27]} 29. Bd5 {[%clk
0:00:53.6]} 29... Kg7 {[%clk 0:02:23]} 30. Bd2 {[%clk 0:00:52.6]} 30... f5
{[%clk 0:02:15.2]} 31. Bc3+ {[%clk 0:00:53.6]} 31... Kh6 {[%clk 0:02:15]} 32.
Kf3 {[%clk 0:00:51.1]} 32... g5 {[%clk 0:02:15]} 33. Rg1 {[%clk 0:00:50.6]}
33... Kg6 {[%clk 0:02:14.7]} 34. Bd2 {[%clk 0:00:51.3]} 34... h6 {[%clk
0:02:14.8]} 35. Rh1 {[%clk 0:00:39.3]} 35... Re7 {[%clk 0:02:10.9]} 36. h4
{[%clk 0:00:40.1]} 36... g4+ {[%clk 0:02:11.9]} 37. Kf2 {[%clk 0:00:31.1]} 37...
h5 {[%clk 0:02:12.8]} 38. Be3 {[%clk 0:00:22.5]} 38... Rce8 {[%clk 0:02:06.5]}
39. Bxc5 {[%clk 0:00:21.2]} 39... Re2+ {[%clk 0:02:07.2]} 40. Kg3 {[%clk
0:00:22.3]} 40... Rxa2 {[%clk 0:02:07.2]} 41. Rd1 {[%clk 0:00:20.1]} 41... Rb2
{[%clk 0:01:49.4]} 42. Rd3 {[%clk 0:00:20.1]} 42... Ree2 {[%clk 0:01:44.2]} 43.
Bc6 {[%clk 0:00:20.2]} 43... Re6 {[%clk 0:01:39.7]} 44. Bd7 {[%clk 0:00:20.7]}
44... Rf6 {[%clk 0:01:39.9]} 45. Be8+ {[%clk 0:00:21.9]} 45... Kh7 {[%clk
0:01:37]} 46. Rd7+ {[%clk 0:00:22.3]} 46... Kg8 {[%clk 0:01:37.8]} 47. Bd4
{[%clk 0:00:22.9]} 47... f4# {[%clk 0:01:38.7]} 0-1

[Event "*** Qualifier 2: Titled Tuesday 3|2 Blitz"]
[Site "Chess.com"]
[Date "2017.04.11"]
[Round "4"]
[White "iturrizaga"]
[Black "Kozok"]
[Result "1-0"]
[WhiteElo "2645"]
[BlackElo "2292"]
[TimeControl "180+2"]
[EndTime "13:49:59 PDT"]
[Termination "iturrizaga won by checkmate"]

1. Nf3 {[%clk 0:02:59.2]} 1... Nf6 {[%clk 0:03:00.2]} 2. c4 {[%clk 0:03:01.1]}
2... e6 {[%clk 0:02:59.8]} 3. g3 {[%clk 0:03:02.4]} 3... d5 {[%clk 0:03:00]} 4.
Bg2 {[%clk 0:03:04.3]} 4... c5 {[%clk 0:03:01.6]} 5. O-O {[%clk 0:03:06.2]} 5...
Nc6 {[%clk 0:03:03]} 6. cxd5 {[%clk 0:03:07.3]} 6... exd5 {[%clk 0:03:04.1]} 7.
d4 {[%clk 0:03:09.2]} 7... Be7 {[%clk 0:03:03.1]} 8. dxc5 {[%clk 0:03:10.8]}
8... Bxc5 {[%clk 0:03:02.6]} 9. a3 {[%clk 0:03:12.7]} 9... a5 {[%clk 0:02:57.7]}
10. Nc3 {[%clk 0:03:11.4]} 10... O-O {[%clk 0:02:58.4]} 11. Na4 {[%clk
0:03:12.6]} 11... Be7 {[%clk 0:02:42.1]} 12. Bf4 {[%clk 0:03:09.9]} 12... b5
{[%clk 0:02:32.5]} 13. Rc1 {[%clk 0:03:09]} 13... Bb7 {[%clk 0:01:58.2]} 14. Nc5
{[%clk 0:03:00.1]} 14... Bxc5 {[%clk 0:01:58.8]} 15. Rxc5 {[%clk 0:03:02]} 15...
Qb6 {[%clk 0:01:57.1]} 16. Rc1 {[%clk 0:02:46.3]} 16... Rfe8 {[%clk 0:01:52.4]}
17. Qd3 {[%clk 0:02:41.6]} 17... b4 {[%clk 0:01:51.1]} 18. Be3 {[%clk
0:02:39.2]} 18... Qd8 {[%clk 0:01:16.5]} 19. Qb5 {[%clk 0:02:35.5]} 19... Qd7
{[%clk 0:01:13.1]} 20. Rfd1 {[%clk 0:02:33.7]} 20... Rac8 {[%clk 0:01:04.6]} 21.
axb4 {[%clk 0:02:30.6]} 21... Nxb4 {[%clk 0:00:58.3]} 22. Qxa5 {[%clk
0:01:54.5]} 22... Nc2 {[%clk 0:00:46.6]} 23. Bf4 {[%clk 0:01:44]} 23... Rxe2
{[%clk 0:00:41.3]} 24. Bf1 {[%clk 0:01:42.7]} 24... Ree8 {[%clk 0:00:38.1]} 25.
Ne5 {[%clk 0:01:27]} 25... Qd8 {[%clk 0:00:32.3]} 26. Qxd8 {[%clk 0:01:13.4]}
26... Rexd8 {[%clk 0:00:34.2]} 27. Bh3 {[%clk 0:01:14.2]} 27... Rc5 {[%clk
0:00:27.5]} 28. Rd2 {[%clk 0:01:04.5]} 28... g5 {[%clk 0:00:13.6]} 29. Bxg5
{[%clk 0:00:58.3]} 29... Ne4 {[%clk 0:00:15.3]} 30. Bxd8 {[%clk 0:00:57.8]}
30... Nxd2 {[%clk 0:00:16.1]} 31. Be7 {[%clk 0:00:56.5]} 31... Rc7 {[%clk
0:00:16.3]} 32. Bd6 {[%clk 0:00:57.1]} 32... Nb3 {[%clk 0:00:11.6]} 33. Rd1
{[%clk 0:00:56.4]} 33... Rc4 {[%clk 0:00:08.9]} 34. Nxc4 {[%clk 0:00:55.5]}
34... dxc4 {[%clk 0:00:10.8]} 35. Be5 {[%clk 0:00:56.7]} 35... Nb4 {[%clk
0:00:10.7]} 36. Rd8# {[%clk 0:00:56.8]} 1-0

[Event "*** Qualifier 2: Titled Tuesday 3|2 Blitz"]
[Site "Chess.com"]
[Date "2017.04.11"]
[Round "4"]
[White "MorpheusPro"]
[Black "pastouche06"]
[Result "0-1"]
[WhiteElo "2154"]
[BlackElo "2308"]
[TimeControl "180+2"]
[EndTime "13:49:59 PDT"]
[Termination "pastouche06 won by resignation"]

1. d4 {[%clk 0:02:59.8]} 1... Nf6 {[%clk 0:03:00]} 2. Nf3 {[%clk 0:03:00.9]}
2... d5 {[%clk 0:03:00.2]} 3. Bf4 {[%clk 0:03:01.9]} 3... c5 {[%clk 0:02:59.5]}
4. c3 {[%clk 0:03:02.3]} 4... Nc6 {[%clk 0:02:47.3]} 5. e3 {[%clk 0:03:02.8]}
5... Qb6 {[%clk 0:02:46.9]} 6. Qb3 {[%clk 0:03:02.4]} 6... c4 {[%clk 0:02:47.8]}
7. Qc2 {[%clk 0:02:53.7]} 7... Bf5 {[%clk 0:02:48.1]} 8. Qc1 {[%clk 0:02:54.4]}
8... e6 {[%clk 0:02:49.1]} 9. Nbd2 {[%clk 0:02:54.4]} 9... h6 {[%clk 0:02:50.1]}
10. Be2 {[%clk 0:02:49.8]} 10... Be7 {[%clk 0:02:50.3]} 11. h3 {[%clk
0:02:45.6]} 11... O-O {[%clk 0:02:50.6]} 12. Ne5 {[%clk 0:02:45.5]} 12... Nxe5
{[%clk 0:02:42.2]} 13. Bxe5 {[%clk 0:02:44.7]} 13... Nd7 {[%clk 0:02:36]} 14.
Bh2 {[%clk 0:02:40.9]} 14... Bd6 {[%clk 0:02:33]} 15. Bxd6 {[%clk 0:02:26.5]}
15... Qxd6 {[%clk 0:02:34.9]} 16. e4 {[%clk 0:02:19.1]} 16... Bxe4 {[%clk
0:02:28.9]} 17. Nxe4 {[%clk 0:02:14.5]} 17... dxe4 {[%clk 0:02:30.8]} 18. Bxc4
{[%clk 0:01:51.8]} 18... e5 {[%clk 0:02:31]} 19. dxe5 {[%clk 0:01:44.1]} 19...
Nxe5 {[%clk 0:02:30.9]} 20. Be2 {[%clk 0:01:42.6]} 20... Nd3+ {[%clk 0:02:27.7]}
21. Bxd3 {[%clk 0:01:42.9]} 21... exd3 {[%clk 0:02:28.3]} 22. O-O {[%clk
0:01:41.7]} 22... Rae8 {[%clk 0:02:25.9]} 23. Qd1 {[%clk 0:01:25.5]} 23... Re2
{[%clk 0:02:24.8]} 24. Qb3 {[%clk 0:01:21.2]} 24... b6 {[%clk 0:01:39.5]} 25.
Rad1 {[%clk 0:01:19.6]} 25... Rfe8 {[%clk 0:01:37.6]} 26. c4 {[%clk 0:01:16.1]}
26... d2 {[%clk 0:01:37.7]} 27. Qc3 {[%clk 0:01:04.6]} 27... Rd8 {[%clk
0:01:34.4]} 28. b3 {[%clk 0:00:43.3]} 28... a5 {[%clk 0:01:33.9]} 29. Qf3 {[%clk
0:00:40.4]} 29... Qe5 {[%clk 0:01:29.5]} 30. h4 {[%clk 0:00:33.7]} 30... Re1
{[%clk 0:01:22.9]} 31. g3 {[%clk 0:00:27.2]} 31... Re8 {[%clk 0:01:00.4]} 32.
Rxd2 {[%clk 0:00:23.8]} 32... Rxf1+ {[%clk 0:01:01.4]} 33. Kxf1 {[%clk
0:00:23.5]} 33... Qe1+ {[%clk 0:01:02.3]} 0-1

[Event "*** Qualifier 2: Titled Tuesday 3|2 Blitz"]
[Site "Chess.com"]
[Date "2017.04.11"]
[Round "4"]
[White "jcibarra"]
[Black "ftorodent"]
[Result "1-0"]
[WhiteElo "2651"]
[BlackElo "2497"]
[TimeControl "180+2"]
[EndTime "13:50:10 PDT"]
[Termination "jcibarra won by resignation"]

1. e4 {[%clk 0:03:02]} 1... e6 {[%clk 0:03:00.6]} 2. d4 {[%clk 0:03:02.5]} 2...
d5 {[%clk 0:03:01.5]} 3. Bd3 {[%clk 0:03:03.9]} 3... c5 {[%clk 0:02:52]} 4. exd5
{[%clk 0:03:04.5]} 4... exd5 {[%clk 0:02:53.1]} 5. Nf3 {[%clk 0:03:05.5]} 5...
Nc6 {[%clk 0:02:52.3]} 6. O-O {[%clk 0:03:06.5]} 6... Bd6 {[%clk 0:02:41.9]} 7.
dxc5 {[%clk 0:03:06.7]} 7... Bxc5 {[%clk 0:02:42.6]} 8. a3 {[%clk 0:03:08.4]}
8... Nge7 {[%clk 0:02:39.6]} 9. b4 {[%clk 0:03:09.1]} 9... Bd6 {[%clk
0:02:40.6]} 10. Bb2 {[%clk 0:03:10.3]} 10... O-O {[%clk 0:02:37.6]} 11. c4
{[%clk 0:03:10.3]} 11... dxc4 {[%clk 0:02:25.7]} 12. Bxc4 {[%clk 0:03:12.2]}
12... Bg4 {[%clk 0:02:25.4]} 13. Nbd2 {[%clk 0:03:11.9]} 13... Be5 {[%clk
0:02:18.5]} 14. Qb3 {[%clk 0:02:58.5]} 14... Bxb2 {[%clk 0:02:11.8]} 15. Qxb2
{[%clk 0:03:00.4]} 15... Qd7 {[%clk 0:01:55.3]} 16. Rfe1 {[%clk 0:02:56.4]}
16... Rad8 {[%clk 0:01:49.3]} 17. h3 {[%clk 0:02:50.7]} 17... Bh5 {[%clk
0:01:47.9]} 18. b5 {[%clk 0:02:39.2]} 18... Na5 {[%clk 0:01:32.9]} 19. Qb4
{[%clk 0:02:05.3]} 19... Bxf3 {[%clk 0:01:06]} 20. Nxf3 {[%clk 0:02:02]} 20...
Nxc4 {[%clk 0:00:58.4]} 21. Rxe7 {[%clk 0:02:02.4]} 21... Qd5 {[%clk 0:00:59.2]}
22. Rc1 {[%clk 0:01:56.1]} 22... Nd6 {[%clk 0:00:54.9]} 23. Rc5 {[%clk 0:01:42]}
23... Qd3 {[%clk 0:00:48]} 24. Re3 {[%clk 0:01:33.6]} 24... Qg6 {[%clk
0:00:34.8]} 25. Rg5 {[%clk 0:01:30.5]} 25... Qf6 {[%clk 0:00:34.7]} 26. Rd5
{[%clk 0:01:25.7]} 26... Nf5 {[%clk 0:00:32.1]} 27. Red3 {[%clk 0:01:25.8]}
27... h6 {[%clk 0:00:27.6]} 28. Qc5 {[%clk 0:01:23.6]} 28... b6 {[%clk
0:00:24.9]} 29. Qc6 {[%clk 0:01:17.1]} 29... Qxc6 {[%clk 0:00:17.1]} 30. bxc6
{[%clk 0:01:17]} 30... Rxd5 {[%clk 0:00:18.2]} 31. Rxd5 {[%clk 0:01:18.9]} 31...
Ne7 {[%clk 0:00:19.7]} 32. Rd6 {[%clk 0:01:18.1]} 32... Rc8 {[%clk 0:00:20.6]}
33. Nd4 {[%clk 0:01:14.9]} 33... Kf8 {[%clk 0:00:18.1]} 34. f4 {[%clk
0:00:54.2]} 34... Ke8 {[%clk 0:00:19.1]} 35. Kf2 {[%clk 0:00:50.6]} 35... Rd8
{[%clk 0:00:20.3]} 36. Nb5 {[%clk 0:00:51.8]} 36... a6 {[%clk 0:00:14.5]} 37.
Nc7+ {[%clk 0:00:44.1]} 1-0